[Event "Sardinia World Festival-A 2024"]
[Site "Orosei"]
[Date "2024.04.29"]
[Round "3.41"]
[White "Carlo, Emanuele"]
[Black "Balinski, Damian"]
[Result "1/2-1/2"]
[ECO "C42"]
[WhiteElo "2363"]
[BlackElo "2204"]
[Annotator "TA"]
[PlyCount "77"]
[EventDate "2024.04.26"]
[EventType "swiss"]
[EventCountry "ITA"]
[SourceTitle "playchess.com"]
[Source "ChessBase"]
[SourceQuality "1"]
[TimeControl "40/5400+30:1800+30"]

{[%evp 15,77,21,25,18,25,17,37,10,26,21,36,5,2,8,0,0,3,0,25,0,16,19,22,25,20,20,14,12,20,14,16,0,0,0,0,-22,-16,-21,0,0,0,0,98,103,94,0,0,0,0,0,0,0,0,0,0,0,0,0,0,0,0,0,0,0]} 1. e4 {[%emt 0:00:03]} e5 {[%emt 0:02:11]} 2. Nf3 {[%emt 0:00:33]} Nf6 {[%emt 0:00:07]} 3. Nxe5 {[%emt 0:00:10]} d6 {[%emt 0:00:04]} 4. Nf3 {[%emt 0:00:07]} Nxe4 {[%emt 0:00:06]} 5. Nc3 {[%emt 0:00:15]} Nxc3 {[%emt 0:00:04]} 6. dxc3 {[%emt 0:00:05]} Be7 {[%emt 0:00:08]} 7. Be3 {[%emt 0:00:16]} Nc6 {[%emt 0:00:04]} 8. Qd2 {[%emt 0:00:32]} Be6 {[%emt 0:00:04]} 9. O-O-O {[%emt 0:01:37]} Qd7 {[%emt 0:00:03]} 10. Kb1 {[%emt 0:02:25]} Bf6 {[%emt 0:00:09]} 11. Be2 {[%emt 0:06:12] White is slightly better.} a6 {[%emt 0:15:52]} 12. h3 {[%emt 0:07:09]} O-O-O {[%emt 0:11:22]} 13. g4 {[%emt 0:16:50]} h6 {[%emt 0:06:36]} 14. Nd4 {[%emt 0:04:24]} Nxd4 {[%emt 0:09:40]} 15. Bxd4 {[%emt 0:00:01]} Bxd4 {[%emt 0:02:01]} 16. Qxd4 {[%emt 0:00:03][%cal Ob2b3]} g5 {[%emt 0:06:42]} 17. Qf6 {[%emt 0:04:02]} Qa4 {[%emt 0:05:38]} 18. b3 {[%emt 0:06:12] Active counter play!} Qa5 {[%emt 0:00:03]} 19. Rhe1 {[%emt 0:01:15]} Qe5 {[%emt 0:01:11]} 20. Qf3 {[%emt 0:00:02][%cal Oe2a6] [#] Hoping for Bxa6!} Qg7 {[%emt 0:01:10]} 21. Kb2 {[%emt 0:00:57]} Rhe8 {[%emt 0:01:15]} 22. Bd3 {[%emt 0:04:08][%cal Be2d3,Bd3e4,Be4d5,Bd5c4][%mdl 32] And now Be4 would win.} Kb8 {[%emt 0:01:15]} 23. Be4 {[%emt 0:01:25]} Bc8 {[%emt 0:02:58]} 24. Bd5 {[%emt 0:02:20]} f6 {[%emt 0:00:12]} 25. Bc4 {[%emt 0:02:02]} Re5 {[%emt 0:01:05]} 26. Re3 {[%emt 0:05:41]} Rde8 {[%emt 0:05:45]} 27. Bd3 {[%emt 0:11:52]} R8e7 {[%emt 0:07:13]} 28. a4 {[%emt 0:01:45]} h5 {[%emt 0:08:24]} 29. gxh5 $16 {[%emt 0:05:53]} g4 {[%emt 0:00:03]} 30. hxg4 {[%emt 0:09:30]} (30. Qf4 $16 {h6 would now be deadly.} gxh3 31. h6) 30... Rxe3 $11 {[%emt 0:01:59] The position is equal.} 31. fxe3 {[%emt 0:00:14]} Bxg4 {[%emt 0:00:42]} 32. h6 $1 {[%emt 0:02:36]} Qg5 {[%emt 0:01:14]} (32... Bxf3 {simplifies} 33. hxg7 Rxg7 34. Rf1 Rg3) 33. Qh1 {[%emt 0:00:51]} Bxd1 {[%emt 0:02:40]} 34. h7 {[%emt 0:00:05]} Rxh7 $1 {[%emt 0:01:20]} 35. Bxh7 {[%emt 0:00:16]} Qh5 {[%emt 0:02:40]} 36. Qxh5 {[%emt 0:04:29]} Bxh5 {[%emt 0:00:03]} 37. c4 {[%emt 0:00:12]} a5 {[%emt 0:01:04]} 38. Bf5 {[%emt 0:00:07]} c5 {[%emt 0:01:03]} 39. Kc3 {[%emt 0:00:50] Weighted Error Value: White=0.09 (flawless) /Black=0.08 (flawless) .  Mistake:       	White=1     	Black=1      Inaccurate:     	White=2     	---        OK:         	White=11    	Black=18     Best:        	White=2     	Black=2      Strong:       	White=1     	Black=1} 1/2-1/2

[Event "Sardinia World Festival-A 2024"]
[Site "Orosei"]
[Date "2024.04.29"]
[Round "3.42"]
[White "Vagman, Roy"]
[Black "Gagliardi, Cristian"]
[Result "1-0"]
[ECO "B01"]
[WhiteElo "2357"]
[BlackElo "2195"]
[Annotator "TA"]
[PlyCount "47"]
[EventDate "2024.04.26"]
[EventType "swiss"]
[EventCountry "ITA"]
[SourceTitle "playchess.com"]
[Source "ChessBase"]
[SourceQuality "1"]
[TimeControl "40/5400+30:1800+30"]

{[%evp 12,47,35,46,46,43,39,44,42,30,75,7,23,25,45,13,13,14,91,92,100,90,165,112,121,92,270,257,285,266,278,278,426,448,552,542,661,649]} 1. e4 {[%emt 0:00:03]} d5 {[%emt 0:03:46]} 2. exd5 {[%emt 0:00:08]} Qxd5 {[%emt 0:00:07]} 3. Nc3 {[%emt 0:00:07]} Qa5 {[%emt 0:00:15]} 4. d4 {[%emt 0:00:09]} Nf6 {[%emt 0:00:26]} 5. Nf3 {[%emt 0:00:13][%cal Bg1f3,Bf3e5,Be5c4,Bc4e3][%mdl 32]} Bf5 {[%emt 0:00:51]} 6. Ne5 {[%emt 0:00:23]} c6 {[%emt 0:00:41]} 7. Bf4 {[%emt 1:32:57]} Nbd7 {[%emt 0:03:51]} 8. Nc4 {[%emt 0:00:00]} Qd8 {[%emt 0:00:16]} 9. Ne3 {[%emt 0:00:00]} Be6 {[%emt 0:03:10] White is slightly better.} 10. a4 {[%emt 0:00:00]} Qa5 {[%emt 0:04:41] [#]} 11. Be2 {[%emt 0:00:00] Prevents Nh5} ({White should play} 11. Bc4 $1 $16) 11... g6 {[%emt 0:20:53]} 12. O-O $36 {[%emt 0:00:00][%mdl 2048] White is pushing.} Bg7 {[%emt 0:00:28]} 13. Re1 {[%emt 0:00:00]} O-O {[%emt 0:04:42]} 14. h3 {[%emt 0:00:00]} Nd5 {[%emt 0:24:41]} (14... Rad8 $11) 15. Ncxd5 $16 {[%emt 0:00:00]} cxd5 {[%emt 0:00:17]} 16. c3 {[%emt 0:00:00] Repels Qb4} Rfc8 {[%emt 0:01:22] [#]} (16... Nf6 $16) 17. Bf3 {[%emt 0:00:00]} (17. Qb3 $1 $18) 17... Nf6 {[%emt 0:00:57][%cal Bd7f6,Bf6e4,Be4c3][%mdl 32]} 18. Qb3 {[%emt 0:00:00]} b6 $2 {[%emt 0:08:59] A mistake that costs the game.} (18... Qb6 $16 {keeps fighting.} 19. Ra3 Qxb3 20. Rxb3 b6) 19. Be2 $18 {[%emt 0:00:00]} Ne4 {[%emt 0:01:28]} 20. Qa3 {[%emt 0:00:00][%cal Ob2b4] Hoping for b4!} Nxc3 {[%emt 0:00:54]} 21. bxc3 {[%emt 0:00:00]} Rxc3 {[%emt 0:00:05]} (21... Qxc3 {was necessary.} 22. Ba6 (22. Qxe7 Qxd4 23. Qg5 h6 $18) 22... Bxd4 23. Bxc8 (23. Qxe7 Bf6 $18) 23... Qxc8 24. Qxe7 Bxa1) 22. Qxe7 {[%emt 0:00:00] White is clearly winning.} Bxd4 {[%emt 0:00:26]} 23. Rad1 {[%emt 0:00:00]} Qc5 {[%emt 0:06:52]} 24. Bd6 {[%emt 0:00:00] Weighted Error Value: White=0.12 (very precise) /Black=0.53.  Loses game:     	---       	Black=1      Mistake:       	White=2     	Black=3      Inaccurate:     	White=1     	Black=1      OK:         	White=8     	Black=4      Best:        	White=1     	Black=1} 1-0

[Event "Sardinia World Festival-A 2024"]
[Site "Orosei"]
[Date "2024.04.29"]
[Round "3.43"]
[White "Saine, Zachary"]
[Black "Selbes, Tamer Tarik"]
[Result "0-1"]
[ECO "C55"]
[WhiteElo "2032"]
[BlackElo "2219"]
[Annotator "NA RC"]
[PlyCount "50"]
[EventDate "2024.04.26"]
[EventType "swiss"]
[EventCountry "ITA"]
[SourceTitle "playchess.com"]
[Source "ChessBase"]
[SourceQuality "1"]
[TimeControl "40/5400+30:1800+30"]

1. e4 {[%emt 0:00:12]} e5 {[%emt 0:00:21]} 2. Nf3 {[%emt 0:00:06]} Nc6 {[%emt 0:00:05]} 3. Bc4 {[%emt 0:00:05]} Nf6 {[%emt 0:00:26]} 4. d3 {[%emt 0:00:07]} h6 {[%emt 0:00:28]} 5. a4 {[%emt 0:01:03]} a6 {[%emt 0:00:47]} 6. O-O {[%emt 0:01:42]} d6 {[%emt 0:00:05]} 7. c3 {[%emt 0:02:01]} g6 {[%emt 0:00:15]} 8. Re1 {[%emt 0:03:12]} Bg7 {[%emt 0:00:10]} 9. Nbd2 {[%emt 0:02:39]} O-O {[%emt 0:00:07]} 10. Nf1 {[%emt 0:09:05]} d5 {[%emt 0:01:58]} 11. exd5 {[%emt 0:03:55]} Nxd5 {[%emt 0:00:05]} 12. a5 {[%emt 0:06:54]} b5 {[%emt 0:04:01]} 13. axb6 {[%emt 0:03:15]} cxb6 {[%emt 0:02:28]} 14. Qb3 {[%emt 0:18:38]} Nde7 {[%emt 0:01:21]} 15. Be3 {[%emt 0:05:32]} b5 {[%emt 0:00:52]} 16. Bxb5 {[%emt 0:09:13]} Rb8 {[%emt 0:00:05]} 17. c4 {[%emt 0:02:48]} axb5 {[%emt 0:00:09]} 18. cxb5 {[%emt 0:00:06]} Be6 {[%emt 0:00:59]} 19. Qa4 {[%emt 0:03:24]} Nd4 {[%emt 0:00:07]} 20. Nxd4 {[%emt 0:05:51]} exd4 {[%emt 0:00:05]} 21. Bf4 {[%emt 0:00:06]} Rb7 {[%emt 0:00:11]} 22. Qa6 {[%emt 0:07:15]} Qd7 {[%emt 0:00:10]} 23. b6 {[%emt 0:02:04]} Nd5 {[%emt 0:01:35]} 24. Bc7 {[%emt 0:01:46]} Qc8 {[%emt 0:00:43]} 25. Bd6 {[%emt 0:02:09]} Rxb6 {[%emt 0:00:24]} 0-1

[Event "Sardinia World Festival-A 2024"]
[Site "Orosei"]
[Date "2024.04.29"]
[Round "3.44"]
[White "Wang, Shanshan"]
[Black "Guidi, Giacomo"]
[Result "1-0"]
[ECO "B33"]
[WhiteElo "1966"]
[BlackElo "1894"]
[Annotator "NA RC"]
[PlyCount "57"]
[EventDate "2024.04.26"]
[EventType "swiss"]
[EventCountry "ITA"]
[SourceTitle "playchess.com"]
[Source "ChessBase"]
[SourceQuality "1"]
[TimeControl "40/5400+30:1800+30"]

1. e4 {[%emt 0:01:18]} c5 {[%emt 0:01:55]} 2. Nf3 {[%emt 0:00:05]} Nc6 {[%emt 0:00:06]} 3. d4 {[%emt 0:00:03]} cxd4 {[%emt 0:00:03]} 4. Nxd4 {[%emt 0:00:04]} Nf6 {[%emt 0:00:04]} 5. Nc3 {[%emt 0:00:04]} e5 {[%emt 0:00:24]} 6. Ndb5 {[%emt 0:00:06]} d6 {[%emt 0:00:12]} 7. Bg5 {[%emt 0:00:04]} a6 {[%emt 0:00:25]} 8. Na3 {[%emt 0:00:05]} b5 {[%emt 0:00:07]} 9. Nd5 {[%emt 0:00:13]} Be7 {[%emt 0:00:07]} 10. Bxf6 {[%emt 0:00:03]} Bxf6 {[%emt 0:00:02]} 11. c3 {[%emt 0:00:05]} O-O {[%emt 0:04:48]} 12. Nc2 {[%emt 0:00:04]} Bg5 {[%emt 0:01:19]} 13. a4 {[%emt 0:01:14]} bxa4 {[%emt 0:13:42]} 14. Rxa4 {[%emt 0:00:15]} a5 {[%emt 0:05:01]} 15. Bc4 {[%emt 0:00:32]} Rb8 {[%emt 0:04:16]} 16. b3 {[%emt 0:00:11]} Kh8 {[%emt 0:01:10]} 17. Nce3 {[%emt 0:00:27]} g6 {[%emt 0:00:52]} 18. h4 {[%emt 0:01:15]} Bxh4 {[%emt 0:04:17]} 19. g3 {[%emt 0:00:20]} Bg5 {[%emt 0:00:59]} 20. f4 {[%emt 0:00:11]} exf4 {[%emt 0:00:47]} 21. gxf4 {[%emt 0:00:04]} Bh4+ {[%emt 0:01:46]} 22. Kf1 {[%emt 0:00:05]} Bf6 {[%emt 0:06:43]} 23. Ra2 {[%emt 0:02:41]} Bg7 {[%emt 0:04:01]} 24. Rah2 {[%emt 0:01:01]} h6 {[%emt 0:00:32]} 25. Qe2 {[%emt 0:01:51]} Qd7 {[%emt 0:11:24]} 26. Rxh6+ {[%emt 0:06:47]} Bxh6 {[%emt 0:00:49]} 27. Rxh6+ {[%emt 0:00:01]} Kg7 {[%emt 0:02:42]} 28. Qh2 {[%emt 0:00:29]} Ba6 {[%emt 0:02:21]} 29. Rh7+ {[%emt 0:00:12]} 1-0

[Event "Sardinia World Festival-A 2024"]
[Site "Orosei"]
[Date "2024.04.29"]
[Round "3.45"]
[White "Maida, Federico"]
[Black "Porcu, Riccardo"]
[Result "1-0"]
[ECO "B11"]
[WhiteElo "1961"]
[BlackElo "1877"]
[Annotator "NA RC"]
[PlyCount "95"]
[EventDate "2024.04.26"]
[EventType "swiss"]
[EventCountry "ITA"]
[SourceTitle "playchess.com"]
[Source "ChessBase"]
[SourceQuality "1"]
[TimeControl "40/5400+30:1800+30"]

1. e4 {[%emt 0:00:03]} c6 {[%emt 0:11:49]} 2. Nc3 {[%emt 0:00:12]} d5 {[%emt 0:00:13]} 3. Nf3 {[%emt 0:00:05]} dxe4 {[%emt 0:01:38]} 4. Nxe4 {[%emt 0:00:09]} Bf5 {[%emt 0:00:49]} 5. Bd3 {[%emt 0:05:33]} Bxe4 {[%emt 0:05:07]} 6. Bxe4 {[%emt 0:00:09]} Nf6 {[%emt 0:00:06]} 7. Bd3 {[%emt 0:00:11]} e6 {[%emt 0:01:32]} 8. O-O {[%emt 0:01:12]} Bd6 {[%emt 0:01:19]} 9. b3 {[%emt 0:00:48]} O-O {[%emt 0:00:26]} 10. Bb2 {[%emt 0:00:07]} Nbd7 {[%emt 0:01:20]} 11. Re1 {[%emt 0:00:41]} Qc7 {[%emt 0:17:18]} 12. c4 {[%emt 0:12:55]} Ng4 {[%emt 0:11:42]} 13. h3 {[%emt 0:04:34]} Nge5 {[%emt 0:12:15]} 14. Nxe5 {[%emt 0:02:05]} Bxe5 {[%emt 0:01:30]} 15. Qh5 {[%emt 0:03:06]} f5 {[%emt 0:10:21]} 16. Bxe5 {[%emt 0:04:36]} Nxe5 {[%emt 0:00:05]} 17. Bc2 {[%emt 0:00:22]} Rae8 {[%emt 0:06:31]} 18. d4 {[%emt 0:00:49]} Qf7 {[%emt 0:00:32]} 19. Qxf7+ {[%emt 0:10:10]} Nxf7 {[%emt 0:00:03]} 20. Re2 {[%emt 0:52:43]} Nd8 {[%emt 0:01:39]} 21. Rae1 {[%emt 0:00:00]} Kf7 {[%emt 0:01:18]} 22. Re5 {[%emt 0:00:00]} g6 {[%emt 0:01:43]} 23. g4 {[%emt 0:00:00]} fxg4 {[%emt 0:03:05]} 24. hxg4 {[%emt 0:00:00]} Ke7 {[%emt 0:00:33]} 25. d5 {[%emt 0:00:00]} Kd7 {[%emt 0:01:21]} 26. dxc6+ {[%emt 0:00:00]} Nxc6 {[%emt 0:00:09]} 27. R5e3 {[%emt 0:00:00]} Rf4 {[%emt 0:01:15]} 28. f3 {[%emt 0:00:00]} e5 {[%emt 0:02:33]} 29. Be4 {[%emt 0:00:00]} Ref8 {[%emt 0:03:46]} 30. Kg2 {[%emt 0:00:00]} R8f6 {[%emt 0:01:03]} 31. Rh1 {[%emt 0:00:00]} Rf7 {[%emt 0:00:20]} 32. Bd5 {[%emt 0:00:00]} Re7 {[%emt 0:00:11]} 33. Be4 {[%emt 0:00:00]} Rf6 {[%emt 0:00:54]} 34. Rhe1 {[%emt 0:00:00]} Ref7 {[%emt 0:02:31]} 35. Bd5 {[%emt 0:00:00]} Rg7 {[%emt 0:00:28]} 36. Bxc6+ {[%emt 0:00:00]} Kxc6 {[%emt 0:00:15]} 37. Rxe5 {[%emt 0:00:00]} Rgf7 {[%emt 0:00:32]} 38. Re6+ {[%emt 0:00:00]} Rxe6 {[%emt 0:00:08]} 39. Rxe6+ {[%emt 0:00:00]} Kc5 {[%emt 0:00:17]} 40. Kg3 {[%emt 0:00:00]} Kb4 {[%emt 0:00:53]} 41. Re5 {[%emt 0:11:41]} b6 {[%emt 0:30:39]} 42. f4 {[%emt 0:01:02]} Ka3 {[%emt 0:00:00]} 43. Re2 {[%emt 0:00:00]} Kb4 {[%emt 0:00:00]} 44. Rf2 {[%emt 0:00:00]} Kc3 {[%emt 0:00:00]} 45. f5 {[%emt 0:00:00]} gxf5 {[%emt 0:00:00]} 46. gxf5 {[%emt 0:00:00]} Kd4 {[%emt 0:00:00]} 47. Kf4 {[%emt 0:00:00]} Kc5 {[%emt 0:00:00]} 48. Rd2 {[%emt 0:00:00]} 1-0

[Event "Sardinia World Festival-A 2024"]
[Site "Orosei"]
[Date "2024.04.29"]
[Round "3.46"]
[White "Saivigneash S M"]
[Black "Becker, Martin Alexander"]
[Result "0-1"]
[ECO "D02"]
[WhiteElo "1817"]
[BlackElo "2373"]
[Annotator "TA"]
[PlyCount "54"]
[EventDate "2024.04.26"]
[EventType "swiss"]
[EventCountry "ITA"]
[SourceTitle "playchess.com"]
[Source "ChessBase"]
[SourceQuality "1"]
[TimeControl "40/5400+30:1800+30"]

{[%evp 9,54,22,18,17,24,17,20,0,11,7,6,3,6,0,11,4,3,-9,11,0,52,39,41,46,46,52,55,55,61,10,8,4,8,0,9,-70,-74,-71,-7,-12,-6,-66,-66,-789,-34,-29981,-29982]} 1. d4 {[%emt 0:00:03]} d5 {[%emt 0:03:36]} 2. Nf3 {[%emt 0:00:06]} e6 {[%emt 0:01:11]} 3. Bf4 {[%emt 0:00:06]} Nf6 {[%emt 0:00:52]} 4. e3 {[%emt 0:00:06]} Bb4+ {[%emt 0:02:21]} 5. c3 {[%emt 0:00:10]} Bd6 {[%emt 0:01:18]} 6. Nbd2 {[%emt 0:02:02]} b6 {[%emt 0:06:35]} 7. Ne5 {[%emt 0:06:22]} O-O {[%emt 0:01:38]} 8. Be2 {[%emt 0:01:23] The position is equal.} Bb7 {[%emt 0:02:41]} 9. O-O {[%emt 0:01:09]} c5 {[%emt 0:02:40]} 10. a4 {[%emt 0:11:32]} Nc6 {[%emt 0:00:35]} 11. Nxc6 {[%emt 0:01:09]} Bxc6 {[%emt 0:00:09]} 12. Bxd6 {[%emt 0:05:31]} Qxd6 {[%emt 0:00:10]} 13. Qb3 {[%emt 0:07:58]} e5 {[%emt 0:08:36]} 14. Nf3 {[%emt 0:15:20]} Nd7 {[%emt 0:12:25]} (14... exd4 $11 15. exd4 Rfe8) 15. dxe5 {[%emt 0:01:01]} Nxe5 {[%emt 0:00:44]} 16. Nxe5 {[%emt 0:00:07]} Qxe5 {[%emt 0:00:08]} 17. Bf3 {[%emt 0:05:44]} Rad8 {[%emt 0:04:59]} 18. Rfd1 {[%emt 0:03:25]} Rd6 {[%emt 0:00:38]} 19. Qc2 {[%emt 0:07:36]} (19. h3 $14) 19... Rfd8 {[%emt 0:01:54]} 20. b4 {[%emt 0:02:21]} Bd7 {[%emt 0:07:08]} 21. bxc5 {[%emt 0:04:44]} bxc5 {[%emt 0:00:13]} 22. c4 {[%emt 0:04:35]} (22. Qb2 $11) 22... Bf5 $15 {[%emt 0:01:48]} 23. Qe2 {[%emt 0:02:08]} Be4 {[%emt 0:05:28]} (23... dxc4 $17 {Threatens to win with ...Rxd1+.} 24. Qxc4 Rxd1+ 25. Rxd1 Rxd1+ 26. Bxd1 Qa1) 24. Bxe4 {[%emt 0:01:19]} dxe4 {[%emt 0:34:43]} 25. Rdc1 {[%emt 0:02:06]} (25. Rab1 $11) 25... Rd2 {[%emt 0:00:00] Black has more active pieces.} 26. Qg4 {[%emt 0:02:19][%mdl 8192] [#]} (26. Qe1 $15) 26... f5 $2 {[%emt 0:00:00]} (26... Qxa1 $1 $19 27. Rxa1 f5) 27. Qf4 $2 {[%emt 0:02:24][%mdl 8192] [#]} (27. Qg5 $15) 27... Qxa1 $3 {[%emt 0:00:00][%mdl 512] Weighted Error Value: White=0.70/Black=0.56.  Loses game:     	White=2     	---        Missed win:     	---       	Black=1      Mistake:       	White=3     	Black=2      OK:         	White=4     	Black=4      Best:        	---       	Black=1} 0-1

[Event "Sardinia World Festival-A 2024"]
[Site "Orosei"]
[Date "2024.04.29"]
[Round "3.47"]
[White "Benoit, Hugues"]
[Black "Melis, Giovanni"]
[Result "1-0"]
[ECO "B06"]
[WhiteElo "1935"]
[BlackElo "1804"]
[Annotator "NA RC"]
[PlyCount "90"]
[EventDate "2024.04.26"]
[EventType "swiss"]
[EventCountry "ITA"]
[SourceTitle "playchess.com"]
[Source "ChessBase"]
[SourceQuality "1"]
[TimeControl "40/5400+30:1800+30"]

1. e4 {[%emt 0:01:52]} g6 {[%emt 0:00:56]} 2. d4 {[%emt 0:00:39]} Bg7 {[%emt 0:00:08]} 3. Nf3 {[%emt 0:00:48]} c6 {[%emt 0:00:30]} 4. Bd3 {[%emt 0:02:09]} d5 {[%emt 0:03:25]} 5. exd5 {[%emt 0:08:33]} cxd5 {[%emt 0:00:28]} 6. c3 {[%emt 0:00:25]} Qd6 {[%emt 0:03:29]} 7. O-O {[%emt 0:03:50]} Nh6 {[%emt 0:01:41]} 8. b3 {[%emt 0:06:33]} Nc6 {[%emt 0:03:02]} 9. Re1 {[%emt 0:14:59]} O-O {[%emt 0:01:18]} 10. Ne5 {[%emt 0:05:17]} Nxe5 {[%emt 0:15:41]} 11. dxe5 {[%emt 0:00:11]} Qc7 {[%emt 0:00:30]} 12. h3 {[%emt 0:01:48]} Kh8 {[%emt 0:08:01]} 13. Bf4 {[%emt 0:02:20]} Be6 {[%emt 0:04:47]} 14. g4 {[%emt 0:06:34]} Rac8 {[%emt 0:06:09]} 15. a4 {[%emt 0:00:41]} Rfd8 {[%emt 0:01:30]} 16. Ra2 {[%emt 0:01:09]} a5 {[%emt 0:02:40]} 17. Be3 {[%emt 0:02:26]} Ng8 {[%emt 0:02:16]} 18. Bd4 {[%emt 0:00:39]} Bd7 {[%emt 0:04:03]} 19. f4 {[%emt 0:05:50]} f5 {[%emt 0:03:25]} 20. g5 {[%emt 0:01:31]} e6 {[%emt 0:00:54]} 21. Qf3 {[%emt 0:02:55]} Bf8 {[%emt 0:00:26]} 22. h4 {[%emt 0:01:08]} Bc5 {[%emt 0:00:36]} 23. h5 {[%emt 0:00:26]} Bxd4+ {[%emt 0:00:24]} 24. cxd4 {[%emt 0:00:05]} Be8 {[%emt 0:00:28]} 25. Bb5 {[%emt 0:04:02]} Bxb5 {[%emt 0:01:16]} 26. axb5 {[%emt 0:01:48]} Ne7 {[%emt 0:00:46]} 27. Rh2 {[%emt 0:01:20]} Qb6 {[%emt 0:01:34]} 28. Qd3 {[%emt 0:01:23]} a4 {[%emt 0:03:40]} 29. bxa4 {[%emt 0:01:27]} Rc4 {[%emt 0:00:11]} 30. Rd1 {[%emt 0:00:21]} Rdc8 {[%emt 0:01:03]} 31. Kg2 {[%emt 0:01:38]} R8c7 {[%emt 0:02:30]} 32. Kf3 {[%emt 0:06:56]} Qa5 {[%emt 0:02:51]} 33. Ke2 {[%emt 0:02:54]} Qxa4 {[%emt 0:04:01]} 34. b6 {[%emt 0:02:03]} Rxd4 {[%emt 0:10:51]} 35. Qxd4 {[%emt 0:11:20]} Rc2+ {[%emt 0:00:12]} 36. Ke3 {[%emt 0:00:00]} Qxd4+ {[%emt 0:00:24]} 37. Kxd4 {[%emt 0:00:00]} Nc6+ {[%emt 0:00:49]} 38. Ke3 {[%emt 0:00:00]} Rxh2 {[%emt 0:00:16]} 39. hxg6 {[%emt 0:00:00]} Rh3+ {[%emt 0:02:48]} 40. Kd2 {[%emt 0:00:00]} hxg6 {[%emt 0:00:55]} 41. Nc3 {[%emt 0:31:30]} Rf3 {[%emt 0:35:56]} 42. Rh1+ {[%emt 0:00:00]} Kg7 {[%emt 0:00:00]} 43. Rh4 {[%emt 0:00:00]} Nd4 {[%emt 0:00:00]} 44. Na4 {[%emt 0:00:00]} Ra3 {[%emt 0:00:00]} 45. Nc3 {[%emt 0:00:00]} Nf3+ {[%emt 0:00:00]} 1-0

[Event "Sardinia World Festival-A 2024"]
[Site "Orosei"]
[Date "2024.04.29"]
[Round "3.48"]
[White "Botez, Andrea"]
[Black "Botez, Alexandra"]
[Result "0-1"]
[ECO "D02"]
[WhiteElo "1879"]
[BlackElo "1970"]
[Annotator "NA RC"]
[PlyCount "66"]
[EventDate "2024.04.26"]
[EventType "swiss"]
[EventCountry "ITA"]
[SourceTitle "playchess.com"]
[Source "ChessBase"]
[SourceQuality "1"]
[TimeControl "40/5400+30:1800+30"]

1. d4 {[%emt 0:00:12]} Nf6 {[%emt 0:00:26]} 2. Bf4 {[%emt 0:00:47]} e6 {[%emt 0:00:15]} 3. e3 {[%emt 0:00:41]} d5 {[%emt 0:00:15]} 4. Nf3 {[%emt 0:00:54]} c5 {[%emt 0:00:26]} 5. c3 {[%emt 0:00:41]} Nc6 {[%emt 0:00:09]} 6. Nbd2 {[%emt 0:00:36]} Bd6 {[%emt 0:01:01]} 7. Bg3 {[%emt 0:00:58]} O-O {[%emt 0:01:41]} 8. Bd3 {[%emt 0:00:37]} b6 {[%emt 0:03:42]} 9. Ne5 {[%emt 0:20:45]} Qc7 {[%emt 0:13:24]} 10. f4 {[%emt 0:02:56]} cxd4 {[%emt 0:02:09]} 11. exd4 {[%emt 0:00:17]} g6 {[%emt 0:04:55]} 12. Bf2 {[%emt 0:08:35]} a5 {[%emt 0:03:13]} 13. Qe2 {[%emt 0:01:01]} Nh5 {[%emt 0:03:16]} 14. g3 {[%emt 0:09:40]} Nb8 {[%emt 0:07:26]} 15. a4 {[%emt 0:03:35]} f6 {[%emt 0:00:56]} 16. Nxg6 {[%emt 0:14:23]} hxg6 {[%emt 0:07:47]} 17. Bxg6 {[%emt 0:00:10]} Ng7 {[%emt 0:00:29]} 18. h4 {[%emt 0:01:37]} Nc6 {[%emt 0:05:09]} 19. h5 {[%emt 0:04:21]} e5 {[%emt 0:07:23]} 20. h6 {[%emt 0:08:13]} Ne6 {[%emt 0:03:51]} 21. Qg4 {[%emt 0:11:22]} Kh8 {[%emt 0:00:26]} 22. f5 {[%emt 0:05:07]} Ng5 {[%emt 0:01:00]} 23. O-O {[%emt 0:02:09]} Ne7 {[%emt 0:02:52]} 24. dxe5 {[%emt 0:00:52]} Bxe5 {[%emt 0:00:17]} 25. Qe2 {[%emt 0:01:48]} Bxf5 {[%emt 0:00:54]} 26. Bxf5 {[%emt 0:00:10]} Nxf5 {[%emt 0:00:06]} 27. Kg2 {[%emt 0:00:25]} Bxg3 {[%emt 0:00:23]} 28. Bxb6 {[%emt 0:00:20]} Nh4+ {[%emt 0:00:48]} 29. Kh1 {[%emt 0:00:09]} Qxb6 {[%emt 0:00:31]} 30. Qd3 {[%emt 0:00:52]} Be5 {[%emt 0:01:24]} 31. Qxd5 {[%emt 0:00:42]} Rad8 {[%emt 0:00:17]} 32. Nc4 {[%emt 0:00:28]} Rxd5 {[%emt 0:00:26]} 33. Nxb6 {[%emt 0:00:05]} Rd2 {[%emt 0:00:08]} 0-1